[Event "15. ročník Dobrovický rapid Tereos TTD a.s."]
[Site "Dobrovice, Czech Republic"]
[Date "2020.02.29"]
[Round "1.7"]
[White "Sorm Daniel"]
[Black "Suran Jan"]
[Result "1-0"]
[TimeControl "15m + 3s / tah"]
[WhiteElo "2310"]
[BlackElo "1738"]

1. d4 {[%clk 00:15:04]} {[%emt 00:00:01]} Nf6 {[%clk 00:15:04]} {[%emt
00:00:03]} 2. c4 {[%clk 00:15:06]} {[%emt 00:00:01]} g6 {[%clk 00:15:05]}
{[%emt 00:00:02]} 3. Nc3 {[%clk 00:15:07]} d5 {[%clk 00:15:06]} {[%emt
00:00:03]} 4. cxd5 {[%clk 00:15:08]} {[%emt 00:00:02]} Nxd5 {[%clk 00:15:07]}
{[%emt 00:00:02]} 5. e4 {[%clk 00:15:10]} Nxc3 {[%clk 00:15:07]} {[%emt
00:00:03]} 6. bxc3 {[%clk 00:15:11]} {[%emt 00:00:02]} Bg7 {[%clk 00:15:09]}
{[%emt 00:00:02]} 7. Nf3 {[%clk 00:15:11]} {[%emt 00:00:03]} c5 {[%clk
00:15:09]} {[%emt 00:00:03]} 8. Bb5+ {[%clk 00:15:11]} {[%emt 00:00:03]} Bd7
{[%clk 00:15:03]} {[%emt 00:00:09]} 9. Be2 {[%clk 00:15:12]} {[%emt 00:00:01]}
O-O {[%clk 00:14:16]} {[%emt 00:00:50]} 10. O-O {[%clk 00:14:53]} {[%emt
00:00:21]} Qc7 {[%clk 00:13:24]} {[%emt 00:00:55]} 11. Bg5 {[%clk 00:12:50]}
{[%emt 00:02:07]} Bg4 {[%clk 00:12:30]} {[%emt 00:00:57]} 12. Qd2 {[%clk
00:12:40]} {[%emt 00:00:12]} Rd8 {[%clk 00:10:36]} {[%emt 00:01:57]} 13. d5
{[%clk 00:12:14]} {[%emt 00:00:29]} Nc6 {[%clk 00:10:03]} {[%emt 00:00:36]} 14.
Rac1 {[%clk 00:11:12]} {[%emt 00:01:04]} Rd7 {[%clk 00:07:54]} {[%emt
00:02:13]} 15. Qe3 {[%clk 00:09:36]} {[%emt 00:01:38]} Bxf3 {[%clk 00:07:07]}
{[%emt 00:00:50]} 16. Bxf3 {[%clk 00:07:56]} {[%emt 00:01:43]} Ne5 {[%clk
00:06:30]} {[%emt 00:00:40]} 17. Be2 {[%clk 00:07:52]} {[%emt 00:00:07]} e6
{[%clk 00:04:30]} {[%emt 00:02:03]} 18. f4 {[%clk 00:04:10]} {[%emt 00:03:44]}
f6 {[%clk 00:03:56]} {[%emt 00:00:37]} 19. fxe5 {[%clk 00:03:47]} {[%emt
00:00:26]} fxg5 {[%clk 00:03:52]} {[%emt 00:00:08]} 20. d6 {[%clk 00:03:46]}
{[%emt 00:00:04]} Qc6 {[%clk 00:03:41]} {[%emt 00:00:14]} 21. Bc4 {[%clk
00:03:27]} {[%emt 00:00:22]} Re8 {[%clk 00:03:34]} {[%emt 00:00:09]} 22. Qh3
{[%clk 00:03:11]} {[%emt 00:00:19]} Kh8 {[%clk 00:02:39]} {[%emt 00:00:58]} 23.
Bxe6 {[%clk 00:03:07]} {[%emt 00:00:07]} Rdd8 {[%clk 00:02:31]} {[%emt
00:00:11]} 24. Bd5 {[%clk 00:02:46]} {[%emt 00:00:24]} Qd7 {[%emt 00:00:43]} 25.
e6 {[%clk 00:01:46]} {[%emt 00:01:01]} Qxd6 {[%clk 00:01:44]} {[%emt 00:00:13]}
26. Rf7 {[%clk 00:01:35]} {[%emt 00:00:13]} Qe5 {[%clk 00:00:56]} {[%emt
00:00:51]} 27. c4 {[%clk 00:01:04]} {[%emt 00:00:34]} Qd4+ {[%clk 00:00:50]}
{[%emt 00:00:09]} 28. Kh1 {[%clk 00:01:03]} {[%emt 00:00:03]} Qd2 {[%clk
00:00:30]} {[%emt 00:00:24]} 29. Rcf1 {[%clk 00:01:01]} {[%emt 00:00:05]} Qxa2
{[%clk 00:00:23]} {[%emt 00:00:10]} 30. Rxg7 {[%clk 00:00:52]} {[%emt
00:00:12]} Kg8 {[%clk 00:15:03]} {[%emt 00:00:17]} 1-0

[Event "15. ročník Dobrovický rapid Tereos TTD a.s."]
[Site "Dobrovice, Czech Republic"]
[Date "2020.02.29"]
[Round "1.8"]
[White "Vseticek Oldrich"]
[Black "Postupa Pavel"]
[Result "0-1"]
[TimeControl "15m + 3s / tah"]
[WhiteElo "1729"]
[BlackElo "2164"]

1. d4 {[%clk 00:15:03]} {[%emt 00:00:01]} Nf6 {[%clk 00:15:05]} {[%emt
00:00:02]} 2. e3 {[%clk 00:15:04]} {[%emt 00:00:02]} g6 {[%clk 00:15:06]}
{[%emt 00:00:02]} 3. Nf3 {[%clk 00:15:04]} {[%emt 00:00:03]} Bg7 {[%clk
00:15:08]} {[%emt 00:00:01]} 4. Be2 {[%clk 00:14:57]} {[%emt 00:00:10]} O-O
{[%clk 00:15:08]} {[%emt 00:00:03]} 5. O-O {[%clk 00:14:57]} {[%emt 00:00:03]}
d5 {[%clk 00:15:10]} {[%emt 00:00:01]} 6. b3 {[%clk 00:14:53]} {[%emt
00:00:07]} c5 {[%clk 00:15:08]} {[%emt 00:00:05]} 7. Bb2 {[%clk 00:14:53]}
{[%emt 00:00:03]} b6 {[%clk 00:15:09]} {[%emt 00:00:03]} 8. Nbd2 {[%clk
00:14:47]} {[%emt 00:00:09]} Nbd7 {[%clk 00:15:03]} {[%emt 00:00:09]} 9. Rb1
{[%clk 00:14:35]} {[%emt 00:00:15]} Bb7 {[%clk 00:15:03]} {[%emt 00:00:03]} 10.
h3 {[%clk 00:14:02]} {[%emt 00:00:36]} Rc8 {[%clk 00:14:54]} {[%emt 00:00:12]}
11. c4 {[%clk 00:13:18]} {[%emt 00:00:47]} Ne4 {[%clk 00:14:27]} {[%emt
00:00:30]} 12. Nxe4 {[%clk 00:12:36]} {[%emt 00:00:45]} dxe4 {[%clk 00:14:28]}
{[%emt 00:00:03]} 13. Nd2 {[%clk 00:11:22]} {[%emt 00:01:16]} e6 {[%clk
00:14:09]} {[%emt 00:00:21]} 14. f3 {[%clk 00:10:18]} {[%emt 00:01:08]} Qg5
{[%clk 00:12:24]} {[%emt 00:01:49]} 15. f4 {[%clk 00:10:05]} {[%emt 00:00:15]}
Qg3 {[%clk 00:12:21]} {[%emt 00:00:06]} 16. dxc5 {[%clk 00:06:27]} {[%emt
00:03:41]} Qxe3+ {[%clk 00:11:19]} {[%emt 00:01:05]} 17. Rf2 {[%clk 00:06:16]}
{[%emt 00:00:14]} Bxb2 {[%clk 00:11:20]} {[%emt 00:00:03]} 18. Rxb2 {[%clk
00:06:18]} {[%emt 00:00:01]} Nxc5 {[%clk 00:10:57]} {[%emt 00:00:26]} 19. Nf1
{[%clk 00:06:09]} {[%emt 00:00:11]} Qc3 {[%clk 00:10:58]} {[%emt 00:00:02]} 20.
Rc2 {[%clk 00:05:21]} {[%emt 00:00:51]} Qf6 {[%clk 00:10:48]} {[%emt 00:00:13]}
21. Ne3 {[%clk 00:05:06]} {[%emt 00:00:18]} Rfd8 {[%clk 00:10:50]} {[%emt
00:00:02]} 22. Rd2 {[%clk 00:04:17]} {[%emt 00:00:53]} Rxd2 {[%clk 00:10:47]}
{[%emt 00:00:05]} 23. Qxd2 {[%clk 00:04:17]} {[%emt 00:00:03]} Rd8 {[%clk
00:10:49]} {[%emt 00:00:02]} 24. Qc2 {[%clk 00:03:37]} {[%emt 00:00:41]} Qd4
{[%clk 00:10:26]} {[%emt 00:00:27]} 25. Qc1 {[%emt 00:00:53]} f5 {[%clk
00:10:03]} {[%emt 00:00:25]} 26. Nc2 {[%clk 00:02:20]} {[%emt 00:00:31]} Qc3
{[%clk 00:10:02]} {[%emt 00:00:04]} 27. Rf1 {[%clk 00:01:44]} {[%emt 00:00:39]}
Rd2 {[%clk 00:09:32]} {[%emt 00:00:32]} 28. Rd1 {[%clk 00:00:09]} {[%emt
00:01:39]} Rxc2 {[%clk 00:09:31]} {[%emt 00:00:04]} 29. Rd8+ {[%clk 00:00:10]}
{[%emt 00:00:02]} Kf7 {[%clk 00:09:24]} {[%emt 00:00:09]} 30. Qd1 {[%clk
00:00:00]} {[%emt 00:00:11]} Rc1 {[%emt 00:00:06]} 0-1

[Event "15. ročník Dobrovický rapid Tereos TTD a.s."]
[Site "Dobrovice, Czech Republic"]
[Date "2020.02.29"]
[Round "1.9"]
[White "Hosticka Frantisek"]
[Black "Groh Ladislav"]
[Result "1-0"]
[TimeControl "15m + 3s / tah"]
[WhiteElo "2106"]
[BlackElo "1726"]

1. e4 {[%clk 00:15:02]} {[%emt 00:00:04]} c5 {[%clk 00:15:06]} 2. Nf3 {[%clk
00:15:04]} Nc6 {[%emt 00:00:03]} 3. Bb5 a6 {[%clk 00:15:09]} {[%emt 00:00:02]}
4. Bxc6 {[%clk 00:15:08]} dxc6 {[%clk 00:15:01]} {[%emt 00:00:11]} 5. h3 {[%clk
00:15:11]} e6 {[%clk 00:14:50]} {[%emt 00:00:14]} 6. d3 {[%clk 00:15:07]}
{[%emt 00:00:06]} Be7 {[%clk 00:14:48]} {[%emt 00:00:05]} 7. O-O {[%clk
00:15:07]} {[%emt 00:00:03]} Qc7 {[%clk 00:14:26]} {[%emt 00:00:25]} 8. e5
{[%clk 00:15:04]} {[%emt 00:00:05]} Bd7 {[%clk 00:14:17]} {[%emt 00:00:13]} 9.
a4 {[%clk 00:14:50]} {[%emt 00:00:17]} f6 {[%clk 00:14:13]} {[%emt 00:00:07]}
10. exf6 {[%clk 00:14:47]} {[%emt 00:00:06]} gxf6 {[%clk 00:14:08]} {[%emt
00:00:08]} 11. a5 {[%clk 00:14:36]} {[%emt 00:00:15]} h5 {[%clk 00:14:10]}
{[%emt 00:00:02]} 12. Nbd2 {[%clk 00:14:35]} {[%emt 00:00:04]} b5 {[%clk
00:13:38]} {[%emt 00:00:35]} 13. axb6 {[%clk 00:14:35]} {[%emt 00:00:03]} Qxb6
{[%clk 00:13:37]} {[%emt 00:00:04]} 14. Nc4 {[%clk 00:14:36]} {[%emt 00:00:02]}
Qc7 {[%clk 00:13:29]} {[%emt 00:00:11]} 15. Bd2 {[%clk 00:14:24]} {[%emt
00:00:15]} Nh6 {[%clk 00:13:31]} {[%emt 00:00:02]} 16. Nh4 {[%clk 00:14:08]}
{[%emt 00:00:17]} Nf5 {[%clk 00:12:29]} {[%emt 00:01:06]} 17. Nxf5 {[%clk
00:14:00]} {[%emt 00:00:11]} exf5 {[%clk 00:12:31]} {[%emt 00:00:02]} 18. Re1
{[%clk 00:13:43]} {[%emt 00:00:20]} Kf7 {[%clk 00:12:33]} 19. Qf3 {[%clk
00:13:21]} {[%emt 00:00:24]} Be6 {[%clk 00:12:04]} {[%emt 00:00:33]} 20. Rxe6
{[%clk 00:12:43]} {[%emt 00:00:41]} Kxe6 {[%clk 00:12:00]} {[%emt 00:00:06]} 21.
Re1+ {[%clk 00:12:45]} {[%emt 00:00:01]} Kf7 {[%clk 00:11:57]} {[%emt
00:00:06]} 22. Qxf5 {[%clk 00:12:45]} {[%emt 00:00:03]} Rag8 {[%clk 00:11:32]}
{[%emt 00:00:28]} 23. Ne5+ {[%clk 00:12:08]} {[%emt 00:00:40]} Kf8 {[%clk
00:10:46]} {[%emt 00:00:50]} 24. Ng6+ {[%clk 00:12:03]} {[%emt 00:00:08]} Rxg6
{[%clk 00:10:34]} {[%emt 00:00:15]} 25. Qxg6 {[%clk 00:12:04]} {[%emt
00:00:01]} Bd8 {[%clk 00:09:17]} {[%emt 00:01:20]} 26. Re8# {[%clk 00:12:00]}
{[%emt 00:00:06]} 1-0

[Event "15. ročník Dobrovický rapid Tereos TTD a.s."]
[Site "Dobrovice, Czech Republic"]
[Date "2020.02.29"]
[Round "1.10"]
[White "Ocelak Jakub"]
[Black "Kaderabek Jiri"]
[Result "0-1"]
[TimeControl "15m + 3s / tah"]
[WhiteElo "1724"]
[BlackElo "2105"]

1. Nf3 {[%clk 00:15:03]} {[%emt 00:00:02]} Nf6 {[%clk 00:15:05]} {[%emt
00:00:01]} 2. c4 {[%clk 00:15:02]} {[%emt 00:00:04]} b6 {[%clk 00:14:50]}
{[%emt 00:00:18]} 3. b3 {[%clk 00:14:08]} {[%emt 00:00:57]} Bb7 {[%clk
00:14:50]} {[%emt 00:00:03]} 4. Bb2 {[%clk 00:14:09]} {[%emt 00:00:02]} g6
{[%clk 00:14:52]} {[%emt 00:00:01]} 5. g3 {[%clk 00:13:21]} {[%emt 00:00:52]}
Bg7 {[%clk 00:14:53]} {[%emt 00:00:01]} 6. Bg2 {[%clk 00:13:22]} {[%emt
00:00:02]} O-O {[%clk 00:14:54]} {[%emt 00:00:02]} 7. O-O {[%clk 00:13:22]}
{[%emt 00:00:03]} d6 {[%clk 00:14:36]} {[%emt 00:00:20]} 8. d4 {[%clk
00:12:19]} {[%emt 00:01:06]} c5 {[%clk 00:14:38]} {[%emt 00:00:01]} 9. d5
{[%clk 00:11:22]} {[%emt 00:01:00]} b5 {[%clk 00:14:24]} {[%emt 00:00:16]} 10.
Qd3 {[%clk 00:08:20]} {[%emt 00:03:04]} Nbd7 {[%clk 00:14:06]} {[%emt
00:00:22]} 11. e4 {[%clk 00:07:25]} {[%emt 00:00:59]} bxc4 {[%clk 00:13:57]}
{[%emt 00:00:12]} 12. bxc4 {[%clk 00:07:18]} {[%emt 00:00:10]} Ba6 {[%clk
00:13:37]} {[%emt 00:00:23]} 13. Nbd2 {[%clk 00:06:30]} {[%emt 00:00:51]} Qa5
{[%clk 00:12:43]} {[%emt 00:00:57]} 14. Nb3 {[%clk 00:04:07]} {[%emt 00:02:26]}
Qa4 {[%clk 00:12:29]} {[%emt 00:00:17]} 15. Nfd2 {[%clk 00:04:08]} {[%emt
00:00:03]} Rab8 {[%clk 00:12:18]} {[%emt 00:00:13]} 16. f4 {[%clk 00:04:00]}
{[%emt 00:00:11]} Rb4 {[%clk 00:11:40]} {[%emt 00:00:41]} 17. Rfc1 {[%clk
00:03:42]} {[%emt 00:00:22]} Rfb8 {[%clk 00:10:04]} {[%emt 00:01:38]} 18. Bc3
{[%clk 00:03:10]} {[%emt 00:00:35]} Bxc4 {[%clk 00:08:59]} {[%emt 00:01:08]} 19.
Qc2 {[%clk 00:02:04]} {[%emt 00:01:09]} R4b5 {[%clk 00:07:35]} {[%emt
00:01:27]} 20. Nxc4 {[%clk 00:01:49]} {[%emt 00:00:19]} Qxc4 {[%clk 00:07:30]}
{[%emt 00:00:08]} 21. Bf1 {[%clk 00:01:45]} {[%emt 00:00:07]} Qxe4 {[%clk
00:07:30]} {[%emt 00:00:03]} 22. Qxe4 {[%clk 00:01:40]} {[%emt 00:00:08]} Nxe4
{[%clk 00:07:32]} {[%emt 00:00:01]} 23. Bxg7 {[%clk 00:01:41]} {[%emt
00:00:01]} Kxg7 {[%clk 00:07:22]} {[%emt 00:00:13]} 24. Bxb5 {[%clk 00:01:41]}
{[%emt 00:00:02]} Rxb5 {[%clk 00:07:24]} {[%emt 00:00:01]} 25. Rc4 {[%clk
00:01:27]} {[%emt 00:00:18]} f5 {[%clk 00:07:12]} {[%emt 00:00:15]} 26. Ra4
{[%clk 00:01:11]} {[%emt 00:00:19]} Nb6 {[%clk 00:06:55]} {[%emt 00:00:20]} 27.
Rxa7 {[%clk 00:01:04]} {[%emt 00:00:10]} Kf6 {[%clk 00:06:57]} {[%emt
00:00:01]} 28. Rb7 {[%clk 00:00:55]} {[%emt 00:00:12]} Nc3 {[%clk 00:06:43]}
{[%emt 00:00:17]} 29. Nd2 {[%clk 00:00:38]} {[%emt 00:00:21]} Rb2 {[%clk
00:06:40]} {[%emt 00:00:06]} 30. Nf3 {[%clk 00:00:36]} {[%emt 00:00:05]} Ncxd5
{[%clk 00:06:23]} {[%emt 00:00:19]} 31. a4 {[%clk 00:00:34]} {[%emt 00:00:05]}
Nxa4 {[%clk 00:06:21]} {[%emt 00:00:05]} 32. Rxb2 {[%clk 00:00:18]} {[%emt
00:00:19]} Nxb2 {[%clk 00:06:23]} {[%emt 00:00:01]} 33. Ng5 {[%clk 00:00:20]}
{[%emt 00:00:01]} h6 {[%clk 00:06:19]} {[%emt 00:00:07]} 34. Nf3 {[%clk
00:00:20]} {[%emt 00:00:02]} Nc4 {[%clk 00:06:06]} {[%emt 00:00:16]} 35. Rc1
{[%clk 00:00:14]} {[%emt 00:00:09]} Ncb6 {[%clk 00:06:01]} {[%emt 00:00:08]} 36.
Nd2 {[%clk 00:00:12]} {[%emt 00:00:05]} Na4 {[%clk 00:05:45]} {[%emt 00:00:19]}
37. Kf2 {[%clk 00:00:13]} {[%emt 00:00:03]} Nac3 {[%clk 00:05:32]} {[%emt
00:00:16]} 38. Nf1 {[%clk 00:00:08]} {[%emt 00:00:08]} Ne4+ {[%clk 00:05:32]}
{[%emt 00:00:03]} 39. Kg2 {[%clk 00:00:10]} e5 {[%clk 00:05:24]} {[%emt
00:00:11]} 40. fxe5+ {[%clk 00:00:09]} {[%emt 00:00:05]} Kxe5 {[%clk 00:05:25]}
{[%emt 00:00:01]} 41. h3 {[%clk 00:00:07]} {[%emt 00:00:05]} g5 {[%clk
00:05:14]} {[%emt 00:00:13]} 42. Nh2 {[%clk 00:00:10]} {[%emt 00:00:01]} Ndf6
{[%clk 00:05:04]} {[%emt 00:00:13]} 43. Nf3+ {[%clk 00:00:11]} {[%emt
00:00:02]} Ke6 {[%clk 00:05:05]} {[%emt 00:00:01]} 44. Rd1 {[%clk 00:00:09]}
{[%emt 00:00:05]} d5 {[%clk 00:04:57]} {[%emt 00:00:11]} 45. Ne1 {[%clk
00:00:06]} {[%emt 00:00:06]} d4 {[%clk 00:04:40]} {[%emt 00:00:19]} 46. Nd3
{[%clk 00:00:09]} {[%emt 00:00:01]} Nd5 {[%clk 00:04:19]} {[%emt 00:00:23]} 47.
Kh2 {[%clk 00:00:05]} {[%emt 00:00:07]} Ndc3 {[%clk 00:04:11]} {[%emt
00:00:11]} 48. Re1 {[%clk 00:00:05]} {[%emt 00:00:03]} Kd5 {[%clk 00:03:49]}
{[%emt 00:00:25]} 49. Nb2 {[%clk 00:00:07]} {[%emt 00:00:01]} c4 {[%clk
00:03:44]} {[%emt 00:00:08]} 50. Ra1 {[%clk 00:00:09]} {[%emt 00:00:01]} d3
{[%clk 00:03:27]} {[%emt 00:00:20]} 51. Ra8 {[%clk 00:00:07]} {[%emt 00:00:04]}
d2 {[%clk 00:03:17]} {[%emt 00:00:13]} 52. Rd8+ {[%clk 00:00:09]} {[%emt
00:00:01]} Nd6 {[%clk 00:03:18]} {[%emt 00:00:02]} 53. Nxc4 {[%emt 00:00:14]}
0-1

[Event "15. ročník Dobrovický rapid Tereos TTD a.s."]
[Site "Dobrovice, Czech Republic"]
[Date "2020.02.29"]
[Round "1.11"]
[White "Zahorbensky Jaroslav"]
[Black "Moravek Jakub"]
[Result "1-0"]
[TimeControl "15m + 3s / tah"]
[WhiteElo "2105"]
[BlackElo "1717"]

1. e4 {[%clk 00:15:02]} {[%emt 00:00:03]} e6 {[%clk 00:15:04]} {[%emt
00:00:02]} 2. d4 {[%clk 00:15:03]} {[%emt 00:00:03]} d5 {[%clk 00:15:04]}
{[%emt 00:00:02]} 3. e5 {[%clk 00:15:04]} {[%emt 00:00:01]} c5 {[%clk
00:15:00]} {[%emt 00:00:07]} 4. c3 {[%clk 00:15:06]} {[%emt 00:00:01]} Nc6
{[%clk 00:14:56]} {[%emt 00:00:07]} 5. Nf3 {[%clk 00:15:08]} {[%emt 00:00:02]}
cxd4 {[%clk 00:14:27]} {[%emt 00:00:31]} 6. cxd4 {[%clk 00:15:06]} {[%emt
00:00:05]} Bb4+ {[%clk 00:14:21]} {[%emt 00:00:08]} 7. Bd2 {[%clk 00:15:07]}
{[%emt 00:00:02]} Bxd2+ {[%clk 00:13:41]} {[%emt 00:00:43]} 8. Qxd2 {[%clk
00:15:01]} {[%emt 00:00:09]} Qa5 {[%clk 00:13:14]} {[%emt 00:00:30]} 9. Nc3
{[%clk 00:14:45]} {[%emt 00:00:20]} Nge7 {[%clk 00:13:13]} {[%emt 00:00:04]} 10.
Bd3 {[%emt 00:00:46]} b6 {[%clk 00:12:45]} 11. O-O {[%clk 00:13:56]} {[%emt
00:00:39]} Ba6 {[%clk 00:12:32]} {[%emt 00:00:15]} 12. a3 {[%clk 00:13:58]}
{[%emt 00:00:03]} Bxd3 {[%clk 00:12:24]} {[%emt 00:00:10]} 13. Qxd3 {[%clk
00:13:59]} {[%emt 00:00:02]} b5 {[%clk 00:10:12]} {[%emt 00:02:14]} 14. b4
{[%clk 00:12:50]} {[%emt 00:01:13]} Qb6 {[%clk 00:09:49]} {[%emt 00:00:24]} 15.
Nxb5 {[%clk 00:12:12]} {[%emt 00:00:42]} Nf5 {[%clk 00:09:41]} {[%emt
00:00:10]} 16. g4 {[%clk 00:12:06]} {[%emt 00:00:10]} a6 {[%clk 00:09:10]}
{[%emt 00:00:33]} 17. gxf5 {[%clk 00:11:56]} {[%emt 00:00:13]} Qxb5 {[%clk
00:09:06]} {[%emt 00:00:06]} 18. Qc2 {[%clk 00:11:19]} {[%emt 00:00:40]} O-O
{[%clk 00:07:51]} {[%emt 00:01:20]} 19. f6 {[%clk 00:10:45]} {[%emt 00:00:37]}
Qc4 {[%clk 00:07:02]} {[%emt 00:00:51]} 20. Qd2 {[%clk 00:10:39]} {[%emt
00:00:10]} Qb3 {[%clk 00:06:44]} {[%emt 00:00:20]} 21. Qg5 {[%clk 00:10:07]}
{[%emt 00:00:36]} g6 {[%clk 00:05:51]} {[%emt 00:00:56]} 22. Qh6 {[%clk
00:10:00]} {[%emt 00:00:11]} 1-0

[Event "15. ročník Dobrovický rapid Tereos TTD a.s."]
[Site "Dobrovice, Czech Republic"]
[Date "2020.02.29"]
[Round "1.12"]
[White "Hon Jiri"]
[Black "Toman Jan"]
[Result "0-1"]
[TimeControl "15m + 3s / tah"]
[WhiteElo "1714"]
[BlackElo "2088"]

1. Nf3 {[%clk 00:15:04]} {[%emt 00:00:01]} Nf6 {[%clk 00:15:03]} {[%emt
00:00:03]} 2. b3 {[%clk 00:15:07]} g6 {[%clk 00:15:01]} {[%emt 00:00:05]} 3.
Bb2 {[%clk 00:15:10]} Bg7 {[%clk 00:15:03]} 4. e3 {[%clk 00:15:12]} O-O {[%clk
00:14:29]} {[%emt 00:00:37]} 5. Be2 {[%clk 00:15:13]} {[%emt 00:00:03]} a5
{[%clk 00:13:01]} {[%emt 00:01:30]} 6. a4 {[%clk 00:15:12]} {[%emt 00:00:04]}
d5 {[%clk 00:12:43]} {[%emt 00:00:21]} 7. O-O {[%emt 00:00:08]} Nc6 {[%clk
00:12:19]} {[%emt 00:00:25]} 8. c4 {[%clk 00:14:34]} {[%emt 00:00:38]} Nb4
{[%clk 00:11:08]} {[%emt 00:01:12]} 9. d4 {[%clk 00:12:49]} {[%emt 00:01:50]}
Bf5 {[%clk 00:10:53]} {[%emt 00:00:18]} 10. Na3 {[%clk 00:12:39]} {[%emt
00:00:12]} c6 {[%clk 00:09:54]} {[%emt 00:01:02]} 11. Ne5 {[%clk 00:11:40]}
{[%emt 00:01:02]} Nd7 {[%clk 00:08:48]} {[%emt 00:01:09]} 12. Nd3 {[%clk
00:11:32]} {[%emt 00:00:12]} Na6 {[%clk 00:06:48]} {[%emt 00:02:03]} 13. cxd5
{[%clk 00:10:37]} {[%emt 00:00:58]} cxd5 {[%clk 00:06:50]} 14. Nb5 {[%clk
00:10:04]} {[%emt 00:00:37]} Nf6 {[%clk 00:06:43]} {[%emt 00:00:10]} 15. Rc1
{[%clk 00:09:29]} {[%emt 00:00:38]} Rc8 {[%clk 00:06:06]} {[%emt 00:00:39]} 16.
Ba3 {[%clk 00:08:39]} {[%emt 00:00:53]} Re8 {[%clk 00:06:08]} {[%emt 00:00:01]}
17. Nc5 {[%clk 00:08:12]} {[%emt 00:00:31]} Nxc5 {[%clk 00:06:00]} {[%emt
00:00:11]} 18. dxc5 {[%clk 00:07:34]} {[%emt 00:00:41]} Ne4 {[%clk 00:05:19]}
{[%emt 00:00:43]} 19. Nd4 {[%clk 00:07:01]} {[%emt 00:00:37]} Bd7 {[%clk
00:05:06]} {[%emt 00:00:15]} 20. Qd3 {[%clk 00:05:24]} {[%emt 00:01:40]} Qc7
{[%clk 00:04:50]} {[%emt 00:00:17]} 21. f3 {[%clk 00:05:03]} {[%emt 00:00:26]}
Nf6 {[%clk 00:04:45]} {[%emt 00:00:08]} 22. Nb5 {[%clk 00:04:43]} {[%emt
00:00:23]} Qb8 {[%clk 00:04:41]} {[%emt 00:00:06]} 23. Rfd1 {[%clk 00:04:27]}
{[%emt 00:00:20]} h5 {[%clk 00:04:24]} {[%emt 00:00:19]} 24. Nc3 {[%clk
00:03:49]} {[%emt 00:00:41]} Bc6 {[%clk 00:04:11]} {[%emt 00:00:15]} 25. e4
{[%clk 00:03:33]} {[%emt 00:00:21]} dxe4 {[%clk 00:03:54]} {[%emt 00:00:20]} 26.
Nxe4 {[%clk 00:03:34]} {[%emt 00:00:01]} Nxe4 {[%clk 00:03:30]} {[%emt
00:00:28]} 27. fxe4 {[%clk 00:03:36]} Qf4 {[%clk 00:03:17]} {[%emt 00:00:15]}
28. Bf3 {[%clk 00:03:14]} {[%emt 00:00:26]} Be5 {[%clk 00:03:19]} {[%emt
00:00:01]} 29. g3 {[%clk 00:03:08]} {[%emt 00:00:09]} Qf6 {[%clk 00:03:06]}
{[%emt 00:00:14]} 30. Qe2 {[%clk 00:03:09]} {[%emt 00:00:04]} h4 {[%clk
00:03:07]} {[%emt 00:00:02]} 31. Qg2 {[%clk 00:02:45]} {[%emt 00:00:27]} Red8
{[%clk 00:03:03]} {[%emt 00:00:07]} 32. Bg4 {[%clk 00:02:18]} {[%emt 00:00:30]}
e6 {[%clk 00:02:50]} {[%emt 00:00:15]} 33. Rf1 {[%clk 00:02:13]} {[%emt
00:00:08]} Qg5 {[%clk 00:02:47]} {[%emt 00:00:04]} 34. gxh4 {[%clk 00:02:07]}
{[%emt 00:00:11]} Qe3+ {[%clk 00:02:36]} {[%emt 00:00:14]} 35. Qf2 {[%clk
00:02:02]} {[%emt 00:00:08]} Bd4 {[%clk 00:02:32]} {[%emt 00:00:07]} 0-1